bitfinex/quotes_ETHUSD_20240707
["timestamp","ask_amount","ask_price","bid_price","bid_amount"]
[1720394717321,2.82998655,2952.7,2952.4,0.03237681]
[1720394717523,2.4750965,2952.5,2951.9,5.04416922]
[1720394717717,2.4750965,2952.5,2952.0,0.58237681]
[1720394718153,2.47440205,2952.5,2952.0,0.58237681]
[1720394718455,2.47440205,2952.5,2952.0,0.03237681]
[1720394718956,9.26600205,2952.3,2952.0,0.03237681]
[1720394719165,2.47440205,2952.1,2952.0,0.03237681]
[1720394719378,6.7916,2952.1,2950.6,11.96996922]
[1720394719659,6.7916,2952.1,2950.7,0.03066268]
[1720394719660,2.47006835,2951.5,2950.7,0.03066268]
[1720394719866,2.47006835,2951.5,2950.6,5.04416922]
[1720394720032,5.47006835,2951.5,2950.6,5.04416922]
[1720394720465,3.0,2951.5,2950.6,5.04416922]
[1720394721848,5.0,2951.6,2950.6,5.04416922]
[1720394722356,5.0,2951.6,2950.6,5.54858614]
[1720394722525,5.0,2951.6,2950.7,0.55]
[1720394722726,3.0,2951.5,2950.7,0.55]
[1720394722945,2.0,2951.6,2950.7,0.55]
[1720394723161,2.0,2951.6,2950.8,0.06777457]
[1720394723459,2.0,2951.6,2950.9,0.55]
[1720394724926,2.0,2951.6,2950.7,0.55]
[1720394725761,6.7732,2951.5,2950.7,0.55]
[1720394726066,3.0,2951.4,2950.7,0.55]
[1720394726735,2.0,2951.6,2950.7,0.55]
[1720394728126,2.0,2951.6,2950.8,7.0038]
[1720394728358,2.0,2951.6,2950.9,0.55]
[1720394730870,2.0,2951.6,2951.0,0.02630783]
[1720394731256,3.38,2952.2,2951.1,2.313]
[1720394731470,3.38,2952.2,2951.4,2.313]
[1720394731676,3.38,2952.2,2951.5,0.61774497]
[1720394732544,3.38,2952.2,2951.5,0.55]
[1720394733046,3.38,2952.2,2951.6,0.04967751]
[1720394733248,3.38,2952.2,2951.7,0.55]
[1720394733476,3.38,2952.2,2951.5,0.55]
[1720394734245,3.38,2952.2,2951.5,1.79344692]
[1720394735855,3.38,2952.2,2951.5,0.55]
[1720394736380,3.35493024,2952.1,2951.4,5.04416922]
[1720394736945,3.35493024,2952.1,2951.5,0.55]
[1720394737866,3.35493024,2952.1,2951.6,6.8403]
[1720394738081,3.35493024,2952.1,2951.7,1.36355384]
[1720394738294,3.38,2952.6,2951.7,1.29580542]
[1720394738648,3.73491867,2952.6,2951.7,1.29580542]
[1720394744583,3.38,2952.6,2951.7,1.29580542]
[1720394750392,3.38,2952.6,2951.6,6.8403]
[1720394751071,9.9602,2952.5,2951.6,6.8403]
[1720394753711,3.0,2952.5,2951.6,6.8403]
[1720394754015,7.47662637,2952.7,2951.6,6.8403]
[1720394754322,7.47665996,2952.7,2951.7,0.06775446]
[1720394754538,0.35496319,2952.6,2951.8,0.55]
[1720394755209,0.35496319,2952.6,2951.8,0.61774802]
[1720394755718,3.73496319,2952.6,2951.8,0.61774802]
[1720394756025,3.0,2952.5,2951.8,0.61774802]
[1720394756329,3.0,2952.5,2951.8,0.55]
[1720394757126,3.0,2952.5,2951.7,0.55]
[1720394757997,0.64595928,2952.4,2951.7,0.55]
[1720394758440,1.96395552,2952.4,2951.7,0.55]
[1720394759388,1.96395552,2952.4,2951.6,6.8403]
[1720394759593,4.43061548,2952.4,2951.6,6.8403]
[1720394759794,4.96395552,2952.3,2951.6,6.8403]
[1720394759994,1.96395552,2952.2,2951.6,6.8403]
[1720394760208,4.96395552,2952.2,2951.6,6.8403]
[1720394760416,1.96395552,2952.1,2951.6,6.8403]
[1720394761033,0.64595928,2952.0,2951.6,6.8403]
[1720394761339,0.64595928,2951.9,2951.6,6.8403]
[1720394761541,0.64595928,2951.8,2951.4,5.04416922]
[1720394761704,0.64595928,2951.7,2951.5,0.55]
[1720394761888,6.78633484,2952.2,2951.5,0.55]
[1720394761889,0.64595928,2951.6,2951.5,0.55]
[1720394762092,1.31799624,2952.1,2951.4,0.55]
[1720394762093,4.96395552,2952.1,2951.4,0.55]
[1720394762320,1.96395552,2952.0,2951.4,0.55]
[1720394762503,4.96395552,2952.0,2951.4,0.55]
[1720394762700,4.96395552,2952.0,2951.0,11.79976922]
[1720394762701,1.96395552,2951.9,2951.0,11.79976922]
[1720394762941,0.64584897,2951.8,2951.0,12.97974614]
[1720394763094,0.64584897,2951.7,2951.0,12.97974614]
[1720394763294,0.64600334,2951.6,2951.0,12.97974614]
[1720394763509,0.64600334,2951.5,2951.0,12.97974614]
[1720394763704,0.64600334,2951.4,2951.1,0.06776473]
[1720394763919,1.31796556,2952.0,2951.2,10.37335109]
[1720394764243,0.64610024,2952.0,2951.6,2.313]
[1720394764447,3.73496319,2952.6,2951.6,2.313]
[1720394764448,0.64610024,2951.9,2951.7,7.37334556]
[1720394764740,0.64616312,2951.8,2951.7,7.37334556]
[1720394765041,0.64616312,2951.8,2951.7,8.27423456]
[1720394765339,1.31844447,2952.5,2951.7,8.27423456]
[1720394765645,0.64612546,2952.4,2951.7,8.27423456]
[1720394765844,0.64612546,2952.3,2951.7,8.27423456]
[1720394766135,0.35496319,2952.6,2951.7,8.27423456]
[1720394766136,0.64614274,2952.2,2951.7,8.27423456]
[1720394766442,0.35496319,2952.6,2951.9,7.3049]
[1720394766636,0.35496319,2952.6,2952.0,0.55]
[1720394768308,0.35496319,2952.6,2952.1,0.06773775]
[1720394768514,0.35496319,2952.6,2952.2,0.55]
[1720394769621,0.35496319,2952.6,2952.0,0.55]
[1720394771453,0.35496319,2952.6,2952.0,1.44136235]
[1720394771640,0.35496319,2952.6,2952.0,0.55]
[1720394772428,0.35496319,2952.6,2952.1,0.0677399]
[1720394772634,0.35496319,2952.6,2952.2,0.55]
[1720394774160,0.35496319,2952.6,2952.0,0.55]
[1720394774346,2.82902737,2952.6,2952.0,0.55]
[1720394775033,0.35496319,2952.6,2952.0,1.33549]
[1720394775636,2.82902737,2952.6,2952.0,1.33549]
[1720394775836,2.82942777,2952.6,2952.0,1.33549]
[1720394776563,0.35496319,2952.6,2952.1,7.456]
[1720394776737,0.35496319,2952.6,2952.2,0.55]
[1720394777071,0.35496319,2952.6,2952.3,0.06773655]
[1720394777273,0.35496319,2952.6,2952.4,0.55]
[1720394778573,0.35496319,2952.6,2952.2,0.55]
[1720394778778,0.35496319,2952.6,2952.3,0.8006]
[1720394779081,0.35496319,2952.6,2952.4,0.55]
[1720394779753,0.35496319,2952.6,2952.3,0.8006]
[1720394779754,0.35496319,2952.6,2952.1,7.456]
[1720394781143,0.35496319,2952.6,2951.8,7.0235]
[1720394781337,0.35496319,2952.6,2951.9,0.55]
[1720394781974,0.35496319,2952.6,2951.9,0.89272945]
[1720394782566,0.35496319,2952.6,2952.0,7.41375654]
[1720394782775,0.35496319,2952.6,2952.1,0.55]
[1720394783486,0.35496319,2952.6,2952.2,7.3566]
[1720394783779,0.35496319,2952.6,2952.3,0.61772971]
[1720394783960,0.35496319,2952.6,2952.4,1.02873297]
[1720394784162,0.35496319,2952.6,2952.5,0.61772932]
[1720394785165,0.35496319,2952.6,2952.5,7.5347]
[1720394791897,0.35496319,2952.6,2952.1,7.4018]
[1720394793708,0.35496319,2952.6,2952.2,0.55]
[1720394793874,0.35496319,2952.6,2952.2,1.57648]
[1720394799747,0.35496319,2952.6,2952.2,0.55]
[1720394799947,0.35496319,2952.6,2952.1,0.55]
[1720394800149,0.35496319,2952.6,2952.0,0.55]
[1720394800446,0.35496319,2952.6,2952.1,2.313]
[1720394800652,0.35496319,2952.6,2952.2,0.55]
[1720394801661,0.35496319,2952.6,2952.3,7.2826]
[1720394801813,0.35496319,2952.6,2952.4,0.55]
[1720394802016,0.35496319,2952.6,2952.5,2.313]
[1720394802234,0.35496319,2952.6,2952.5,2.863]
[1720394804467,7.0195,2953.6,2952.5,2.863]
[1720394804756,7.0195,2953.6,2952.6,0.55]
[1720394806754,7.0195,2953.6,2952.6,0.8363]
[1720394810342,2.47198163,2953.3,2952.6,0.55]
[1720394811051,2.47198163,2953.4,2952.6,0.55]
[1720394811436,2.47232147,2953.4,2952.6,0.55]
[1720394811946,2.4723984,2953.4,2952.6,0.55]
[1720394812154,2.4723984,2953.4,2952.7,7.4232]
[1720394812467,7.4577,2953.8,2952.8,1.41504042]
[1720394812468,2.4723984,2953.5,2952.8,1.41504042]
[1720394812765,7.4577,2953.8,2952.8,1.41504042]
[1720394813122,9.9300984,2953.8,2952.8,1.41504042]
[1720394813963,7.4577,2953.8,2952.8,1.41504042]
[1720394814471,7.4577,2953.8,2952.9,0.88382404]
[1720394814694,7.4577,2953.8,2953.0,0.61771796]
[1720394814695,0.35462397,2953.7,2953.0,0.61771796]
[1720394815493,0.35462397,2953.7,2953.0,0.55]
[1720394816760,0.35462397,2953.7,2952.9,0.55]
[1720394818079,2.82611445,2953.7,2952.9,0.55]
[1720394818484,2.47149048,2953.6,2952.9,0.55]
[1720394820024,2.47149048,2953.4,2952.8,5.04416922]
[1720394820328,6.72599048,2953.1,2952.8,5.04416922]
[1720394820468,2.47149048,2953.0,2952.8,5.04416922]
[1720394820665,6.72599048,2952.9,2952.3,16.91896922]
[1720394820970,2.47135516,2952.5,2952.3,16.91896922]
[1720394821206,6.77115516,2952.4,2951.1,2.313]
[1720394821523,2.4709022,2952.1,2951.1,2.313]
[1720394822014,2.4709022,2952.0,2951.1,2.313]
[1720394822221,2.4709022,2952.1,2951.1,2.313]
[1720394822383,2.4709022,2952.1,2950.7,4.5761]
[1720394822384,2.4709022,2952.1,2950.7,6.5491]
[1720394822592,2.4709022,2951.8,2950.4,2.313]
[1720394822803,4.2998,2951.9,2950.4,2.313]
[1720394822804,2.4709022,2951.7,2950.4,2.313]
[1720394823106,2.4709022,2951.5,2950.5,0.06777659]
[1720394823311,4.2998,2951.9,2950.5,0.66168766]
[1720394823515,2.46873731,2951.5,2950.4,2.313]
[1720394823671,2.46873731,2951.6,2950.4,2.313]
[1720394824006,2.46873731,2951.7,2950.4,2.313]
[1720394824307,4.2998,2951.9,2950.4,2.313]
[1720394824308,2.46873731,2951.6,2950.4,2.313]
[1720394824669,2.46873731,2951.7,2950.4,2.313]
[1720394825523,2.46873731,2951.7,2950.0,2.313]
[1720394825762,4.4035,2951.6,2950.0,2.98204]
[1720394825941,3.0,2951.5,2950.0,2.98204]
[1720394826421,1.96090741,2951.4,2950.0,2.98204]
[1720394826761,0.64502581,2951.3,2950.0,2.98204]
[1720394826919,1.31576992,2951.4,2950.0,2.98204]
[1720394826920,0.64502581,2951.2,2950.1,1.285944]
[1720394827115,0.64502581,2951.1,2950.1,1.285944]
[1720394827315,0.64502581,2951.0,2950.1,1.285944]
[1720394827511,0.64501831,2950.9,2950.1,1.285944]
[1720394827718,1.31576992,2951.4,2950.2,0.3598944]
[1720394828019,1.96080999,2951.4,2950.3,0.55]
[1720394828456,3.96080999,2951.4,2950.3,0.55]
[1720394828663,1.96080999,2951.3,2950.3,0.55]
[1720394829138,3.38,2951.1,2950.3,0.55]
[1720394829340,0.64504007,2951.0,2950.3,0.55]
[1720394829862,5.62445225,2950.9,2949.4,4.5538]
[1720394830186,5.62445225,2950.9,2949.0,2.313]
[1720394830187,0.64511162,2950.8,2949.0,6.8668]
[1720394830321,0.64511162,2950.8,2948.8,2.313]
[1720394830322,3.38,2950.2,2948.8,2.313]
[1720394830520,3.38,2950.2,2948.9,0.2313]
[1720394830881,8.60176053,2950.1,2947.9,0.34557596]
[1720394831065,8.60176053,2950.1,2948.3,0.34]
[1720394831066,0.64516053,2950.0,2948.3,0.34]
[1720394832547,10.9566,2950.1,2948.3,0.34]
[1720394834608,10.9566,2950.1,2948.4,0.89]
[1720394836014,10.9566,2950.1,2948.4,0.55]
[1720394836319,10.9566,2950.1,2948.4,5.38416922]
[1720394836473,10.9566,2950.1,2948.5,1.14341692]
[1720394837420,7.9566,2950.1,2948.6,7.1762]
[1720394837717,3.38,2950.2,2949.0,2.313]
[1720394837872,3.38,2950.2,2949.1,0.2313]
[1720394838078,3.38,2950.2,2949.2,0.55]
[1720394840109,3.38,2950.2,2949.3,6.8441]
[1720394840305,3.38,2950.2,2949.4,0.55]
[1720394840887,3.38,2950.2,2949.2,0.61780749]
[1720394841204,3.38,2950.2,2949.3,0.58932767]
[1720394841404,3.38,2950.2,2949.4,0.55]
[1720394844052,3.38,2950.2,2949.5,0.02851356]
[1720394844568,0.35475335,2950.1,2949.5,0.02851356]
[1720394844770,0.35475335,2950.1,2949.4,0.55]
[1720394844973,0.35475335,2950.1,2949.4,0.37923277]
[1720394845267,0.35475335,2950.1,2949.3,0.58932767]
[1720394845419,0.35475335,2950.1,2949.3,0.61799418]
[1720394845624,0.35475335,2950.1,2949.3,0.58932767]
[1720394846370,0.35475335,2950.1,2949.4,0.55]
[1720394848862,0.35475335,2950.1,2949.1,5.04416922]
[1720394848863,3.7851,2950.0,2949.1,5.04416922]
[1720394849162,3.0,2949.9,2949.1,5.04416922]
[1720394850456,3.0,2949.9,2948.4,4.0926]
[1720394850457,3.0,2949.9,2948.6,5.04416922]
[1720394850631,3.0,2949.9,2948.6,4.68938225]
[1720394850971,3.0,2949.9,2948.6,5.15832048]
[1720394851465,3.0,2949.9,2948.7,0.06781592]
[1720394851824,3.0,2949.9,2948.8,0.55]
[1720394852024,3.0,2949.9,2948.9,0.06781759]
[1720394852324,3.0,2949.9,2949.0,0.55]
[1720394853931,3.7851,2950.0,2949.1,0.06781108]
[1720394854127,3.7851,2950.0,2949.2,0.55]
[1720394854359,3.7851,2950.0,2949.3,0.06780393]
[1720394854543,3.7851,2950.0,2949.4,0.55]
[1720394855795,3.7851,2950.0,2948.6,5.49832048]
[1720394856113,3.7851,2950.0,2948.8,1.33113205]
[1720394856861,3.7851,2950.0,2948.8,1.67113205]
[1720394858282,3.7851,2950.0,2948.9,0.06781026]
[1720394858499,3.7851,2950.0,2949.0,0.55]
[1720394858692,3.7851,2950.0,2949.1,0.06781021]
[1720394858966,3.7851,2950.0,2949.2,0.55]
[1720394860795,0.35475335,2950.1,2949.2,0.55]
[1720394860987,0.35475335,2950.1,2949.3,0.69556]
[1720394861188,0.35475335,2950.1,2949.4,0.55]
[1720394862111,0.35475335,2950.1,2949.4,0.61780195]
[1720394863075,0.35475335,2950.1,2949.4,0.55]
[1720394864017,0.35475335,2950.1,2949.5,0.06780014]
[1720394864235,0.35475335,2950.1,2949.6,0.55]
[1720394864374,0.35475335,2950.1,2949.7,0.06779297]
[1720394864578,0.35475335,2950.1,2949.8,0.55]
[1720394865001,0.35475335,2950.1,2949.6,0.55]
[1720394865201,0.35475335,2950.1,2949.7,0.2863]
[1720394865409,0.64609273,2950.0,2949.8,0.55]
[1720394865607,0.64609273,2950.0,2949.6,0.55]
[1720394866004,0.64609273,2950.0,2949.4,0.55]
[1720394868598,0.6462224,2949.9,2949.4,0.55]
[1720394868799,0.6462224,2949.8,2949.4,0.55]
[1720394869020,7.3875,2950.2,2949.4,1.14349423]
[1720394869333,0.35477877,2949.7,2949.4,1.14349423]
[1720394869536,7.3875,2950.2,2949.4,1.14349423]
[1720394869699,0.35477928,2949.7,2949.4,1.14349423]
[1720394869920,7.3875,2950.2,2949.4,1.14349423]
[1720394870256,0.35477883,2949.7,2949.4,1.14349423]
[1720394870414,7.3875,2950.2,2949.4,1.14349423]
[1720394870617,0.64626278,2950.1,2949.4,1.14349423]
[1720394870814,0.35479568,2949.7,2949.4,1.14349423]
[1720394871054,0.64626783,2949.6,2949.4,1.14349423]
[1720394871252,0.35479842,2949.7,2949.4,1.14349423]
[1720394871461,0.64626989,2949.6,2949.4,1.14349423]
[1720394871822,0.35479842,2949.7,2949.4,1.14349423]
[1720394872017,0.64627308,2949.6,2949.4,1.14349423]
[1720394872256,0.35479842,2949.7,2949.5,0.18390542]
[1720394872455,0.35479842,2949.7,2949.6,0.55]
[1720394872660,1.00106424,2949.7,2949.6,0.55]
[1720394873947,1.00106424,2949.7,2949.5,0.55]
[1720394874133,0.64626582,2949.6,2949.5,0.55]
[1720394874323,0.64626582,2949.6,2949.4,0.55]
[1720394875193,0.35479842,2949.7,2949.4,0.55]
[1720394875374,0.64625865,2949.6,2949.4,0.55]
[1720394875688,0.64625865,2949.6,2949.3,0.55]
[1720394877589,0.35479842,2949.7,2949.3,0.55]
[1720394877885,0.35479842,2949.7,2948.9,12.2148]
[1720394877886,0.6462607,2949.6,2948.9,11.8748]
[1720394878086,0.6462607,2949.6,2948.8,4.68938225]
[1720394878591,0.35479842,2949.7,2948.8,4.68938225]
[1720394878795,3.11953329,2949.6,2948.8,4.68938225]
[1720394879098,0.64623958,2949.5,2948.8,4.68938225]
[1720394879309,0.64623958,2949.4,2948.8,4.68938225]
[1720394879448,0.64623958,2949.3,2948.8,4.68938225]
[1720394879650,0.64623958,2949.2,2948.8,4.68938225]
[1720394879861,0.64623958,2949.1,2948.8,4.68938225]
[1720394880063,0.64623958,2949.0,2948.8,4.68938225]
[1720394880313,0.64636809,2948.9,2948.8,0.47572004]
[1720394880462,0.64636809,2949.6,2948.8,2.863]
[1720394881136,2.82888207,2949.7,2948.9,0.6178184]
[1720394881263,0.64649724,2949.6,2948.9,0.6178184]
[1720394881708,0.64649724,2949.6,2948.9,0.55]
[1720394882004,0.64649724,2949.6,2948.9,0.60190521]
[1720394882313,0.64649724,2949.6,2949.0,0.32549052]
[1720394882512,0.64649724,2949.6,2949.1,0.55]
[1720394882716,0.64649724,2949.6,2949.2,2.38080299]
[1720394882917,0.64649724,2949.6,2949.3,0.61780437]
[1720394883222,0.64649724,2949.6,2949.3,0.55]
[1720394884216,0.35479842,2949.7,2949.3,0.55]
[1720394884532,0.64654062,2949.6,2949.3,0.55]
[1720394887427,0.35479842,2949.7,2949.3,0.55]
[1720394887626,0.64650033,2949.6,2949.3,0.55]
[1720394888026,0.64647691,2949.5,2949.3,0.55]
[1720394888230,0.64647691,2949.4,2949.3,0.55]
[1720394888428,4.43347691,2949.6,2948.8,2.313]
[1720394888676,0.64647691,2949.5,2948.6,8.65158225]
[1720394890157,0.64647691,2949.5,2948.7,0.55]
[1720394890450,6.2628716,2949.6,2948.7,0.55]
[1720394890451,3.12234851,2949.4,2948.7,0.55]
[1720394890620,3.787,2949.6,2948.7,0.55]
[1720394890819,3.12130763,2949.5,2948.7,0.55]
[1720394891034,0.64648233,2949.4,2948.7,0.55]
[1720394891452,0.64648233,2949.4,2948.8,0.05046472]
[1720394891659,0.64648233,2949.4,2948.9,0.55]
[1720394891822,0.64648233,2949.3,2948.7,0.55]
[1720394892022,0.64648233,2949.2,2948.7,0.55]
[1720394892222,0.64648233,2949.1,2948.7,0.55]
[1720394892471,0.64648233,2949.0,2948.7,0.55]
[1720394892623,0.64648233,2948.9,2948.7,0.55]
[1720394892818,0.64648233,2948.8,2948.5,0.55]
[1720394893014,0.64648233,2948.7,2948.5,0.55]
[1720394893229,0.64648233,2948.6,2948.5,0.55]
[1720394893654,0.64648233,2949.4,2948.5,0.55]
[1720394894162,0.6461904,2949.3,2948.5,0.55]
[1720394894477,0.6461904,2949.2,2948.5,0.55]
[1720394894665,0.6461904,2949.1,2948.6,0.03468198]
[1720394894866,0.6461904,2949.0,2948.6,0.32445018]
[1720394895032,0.6461904,2948.9,2948.7,0.55]
[1720394895233,3.787,2949.6,2948.7,0.55]
[1720394895234,0.6461904,2948.8,2948.7,0.55]
[1720394895439,0.6461904,2948.8,2948.7,2.313]
[1720394895761,0.6461904,2949.6,2948.7,2.863]
[1720394895959,0.6461904,2949.6,2948.7,2.313]
[1720394896166,3.1210157,2949.6,2948.8,0.55]
[1720394896368,0.6461904,2949.5,2948.8,0.89]
[1720394896569,0.6461904,2949.4,2948.8,0.89]
[1720394896763,0.6461904,2949.3,2948.8,0.89]
[1720394896968,0.6461904,2949.2,2948.8,0.89]
[1720394897169,0.6461904,2949.1,2948.8,0.89]
[1720394897359,2.47264092,2949.6,2948.8,0.55]
[1720394897563,3.11863888,2949.5,2948.8,0.55]
[1720394897877,0.64600528,2949.4,2948.8,0.55]
[1720394898960,0.64599813,2949.3,2948.8,0.55]
[1720394899160,0.64599813,2949.2,2948.8,0.55]
[1720394899328,0.64599813,2949.1,2948.8,0.55]
[1720394899533,0.64599813,2949.0,2948.3,8.57058225]
[1720394899767,0.64599813,2948.9,2948.4,0.34]
[1720394899931,0.64599813,2948.8,2948.4,0.34]
[1720394900128,0.64599813,2948.7,2948.4,0.34]
[1720394900363,0.64599813,2948.6,2948.4,0.34]
[1720394900570,0.64598748,2948.5,2948.4,0.34]
[1720394900870,0.64598748,2949.1,2948.4,0.89]
[1720394901037,0.64598517,2949.0,2948.5,0.55]
[1720394901233,0.64598517,2948.9,2948.5,0.55]
[1720394901439,0.64598517,2948.8,2948.5,0.55]
[1720394901766,3.9133,2949.6,2948.5,0.55]
[1720394901767,0.64598517,2948.7,2948.6,2.313]
[1720394901972,0.64598517,2949.5,2948.6,2.863]
[1720394902172,0.64598517,2949.5,2949.0,2.313]
[1720394902375,0.64598517,2949.5,2949.1,0.04967151]
[1720394902669,0.64598517,2949.4,2949.3,2.313]
[1720394902872,0.64598517,2950.1,2949.3,2.863]
[1720394903033,0.64651094,2950.0,2949.4,0.59970885]
[1720394903233,0.64651094,2949.9,2949.4,0.59970885]
[1720394903434,0.64651094,2949.8,2949.4,0.59970885]
[1720394903634,3.9498,2950.4,2949.4,0.89097973]
[1720394903871,2.35076257,2952.0,2949.4,0.89097973]
[1720394903872,0.64647761,2950.3,2949.5,3.9112]
[1720394904071,3.8194,2951.0,2949.5,3.9112]
[1720394904072,0.64647761,2950.2,2949.6,0.59970547]
[1720394904249,3.8194,2951.5,2949.6,0.59970547]
[1720394904250,2.47369364,2951.2,2950.3,2.313]
[1720394904447,0.6464543,2951.1,2950.4,0.55]
[1720394904680,0.6464543,2951.0,2950.5,0.06777641]
[1720394905019,0.6464543,2950.9,2950.6,0.55]
[1720394905577,0.6464543,2950.9,2950.4,0.55]
[1720394906665,0.35463533,2951.0,2950.4,0.55]
[1720394907064,0.64656926,2950.9,2950.4,0.55]
[1720394907268,0.35463533,2951.0,2950.4,0.55]
[1720394907269,0.64655524,2950.8,2950.4,0.55]
[1720394907471,0.64655524,2950.7,2950.4,0.55]
[1720394907670,0.64655524,2950.6,2950.4,0.55]
[1720394907880,0.35463533,2951.0,2950.4,0.55]
[1720394908198,0.64654296,2950.9,2950.4,0.55]
[1720394908371,0.64654296,2950.9,2950.2,4.68938225]
[1720394908372,0.64650831,2950.8,2950.3,0.55]
[1720394908556,0.35463533,2951.0,2950.3,0.55]
[1720394908557,0.64650831,2950.7,2950.3,0.55]
[1720394908891,0.64650831,2950.6,2950.2,4.68938225]
[1720394909092,0.64650831,2950.5,2949.6,7.00238225]
[1720394909298,0.64650831,2950.4,2949.6,8.09374048]
[1720394909482,0.64650831,2950.3,2949.6,8.09374048]
[1720394909680,3.6202,2950.6,2949.6,8.09374048]
[1720394909681,0.64650831,2950.2,2949.6,8.09374048]
[1720394910034,2.82362705,2951.0,2949.6,7.00238225]
[1720394910156,3.64642289,2950.9,2949.6,7.00238225]
[1720394910479,0.64642289,2950.8,2949.7,0.55]
[1720394910986,0.64642289,2950.7,2949.7,0.55]
[1720394911191,0.64642289,2950.6,2949.7,0.55]
[1720394911495,0.64642289,2950.5,2949.7,0.55]
[1720394911686,0.64642289,2950.4,2949.8,0.82303118]
[1720394911995,0.64642289,2950.3,2949.9,0.55]
[1720394912168,3.35463533,2951.0,2950.0,0.06778975]
[1720394912495,0.64637412,2950.9,2950.1,0.55]
[1720394912995,0.64637412,2950.9,2949.9,0.55]
[1720394913209,3.35463533,2951.0,2949.9,0.55]
[1720394913367,0.64639828,2950.9,2949.9,0.55]
[1720394916491,3.35463533,2951.0,2949.9,0.55]
[1720394916689,0.64632437,2950.9,2949.9,0.55]
[1720394917002,0.64632217,2950.8,2950.0,0.06314391]
[1720394917206,0.64632217,2950.7,2950.1,0.55]
[1720394917368,0.64632217,2950.6,2950.1,0.55]
[1720394917574,0.64632217,2950.5,2950.1,0.55]
[1720394917900,0.64632217,2950.4,2950.2,0.06313962]
[1720394918104,0.35463533,2951.0,2950.3,0.55]
[1720394918302,0.64631185,2950.9,2950.3,0.55]
[1720394919802,0.35463533,2951.0,2950.3,0.55]
[1720394920006,0.64630453,2950.9,2950.3,0.55]
[1720394920166,0.64630453,2950.9,2950.1,4.68938225]
[1720394920370,4.52240453,2950.9,2950.1,4.68938225]
[1720394920701,0.64630453,2950.8,2949.7,7.00238225]
[1720394921006,0.64630453,2950.8,2949.8,0.70023823]
[1720394921380,0.35469295,2950.7,2949.8,0.70023823]
[1720394921587,0.64630453,2950.6,2949.8,0.70023823]
[1720394922103,0.64630453,2950.6,2949.9,0.61778974]
[1720394922313,0.64630453,2950.6,2950.2,3.7409]
[1720394922510,0.35469295,2950.7,2950.3,0.55]
[1720394922868,0.64623282,2950.6,2950.3,0.55]
[1720394923101,0.35469295,2950.7,2950.3,0.55]
[1720394923309,0.35469295,2950.7,2950.2,0.55]
[1720394923310,0.64622669,2950.6,2950.2,0.55]
[1720394924363,0.64622669,2950.6,2950.1,2.313]
[1720394924568,0.35469295,2950.7,2950.2,0.55]
[1720394925407,0.35469295,2950.7,2950.3,0.06778759]
[1720394925587,0.35469295,2950.7,2950.4,0.55]
[1720394926794,0.35469295,2950.7,2950.4,0.61777939]
[1720394927889,0.35469295,2950.7,2950.4,0.55]
[1720394928186,0.35469295,2950.7,2950.2,0.06777869]
[1720394928187,0.35469295,2950.7,2950.3,0.55]
[1720394928391,0.35469295,2950.7,2950.4,0.06777928]
[1720394928708,0.35469295,2950.7,2950.5,0.55]
[1720394930105,0.35469295,2950.7,2950.3,0.26738576]
[1720394930106,0.35469295,2950.7,2950.4,0.55]
[1720394932006,0.35469295,2950.7,2950.4,0.61777587]
[1720394933720,0.35469295,2950.7,2950.4,0.55]
[1720394934605,0.35469295,2950.7,2950.5,6.11027594]
[1720394934807,0.35469295,2950.7,2950.6,1.21602759]
[1720394935030,0.35469295,2950.7,2950.6,1.28380102]
[1720394939185,0.35469295,2950.7,2950.6,1.21602759]
[1720394939381,0.35469295,2950.7,2950.6,0.55]
[1720394942489,0.35469295,2950.7,2950.4,0.55]
[1720394947832,0.35469295,2950.7,2950.1,4.68938225]
[1720394948449,0.35469295,2950.7,2949.8,14.1878]
[1720394948660,3.8676,2950.6,2949.8,11.8748]
[1720394949222,3.0,2950.5,2949.8,11.8748]
[1720394949427,3.5741,2950.4,2949.8,11.8748]
[1720394949955,0.35465297,2950.3,2949.8,11.8748]
[1720394950331,0.35465297,2950.3,2949.8,15.84421823]
[1720394950532,0.35465297,2950.3,2949.9,0.55]
[1720394958542,0.35465297,2950.3,2949.9,0.61779079]
[1720394958746,0.35465297,2950.3,2950.0,0.06779079]
[1720394959044,0.35465297,2950.3,2950.1,0.55]
[1720394959463,0.35465297,2950.3,2949.8,2.313]
[1720394959633,0.35465297,2950.3,2949.9,0.55]
[1720394961703,0.35465297,2950.3,2949.9,0.89]
[1720394961870,0.35465297,2950.3,2949.9,4.7226]
[1720394962701,0.35465297,2950.3,2950.2,2.313]
[1720394962862,0.35465297,2950.3,2950.2,2.863]
[1720394963192,0.35465297,2950.3,2950.2,3.15607819]
[1720394963377,0.35465297,2950.3,2950.2,0.84307819]
[1720394963582,0.35465297,2950.3,2950.2,2.863]
[1720394973105,1.31527234,2951.0,2950.2,2.863]
[1720394973305,0.35467223,2951.0,2950.6,2.313]
[1720394973462,0.35467223,2951.0,2950.7,0.58410283]
[1720394973663,0.35467223,2951.0,2950.8,0.03410167]
[1720394973908,0.35467223,2951.0,2950.7,0.55]
[1720394974204,0.35467223,2951.0,2950.8,0.3203]
[1720394974366,0.35467223,2951.0,2950.9,0.55]
[1720394975599,0.35467223,2951.0,2950.7,0.55]
[1720394977212,0.35467223,2951.0,2950.8,0.06777309]
[1720394977503,0.35467223,2951.0,2950.9,0.55]
[1720394980296,0.35467223,2951.0,2950.6,2.653]
[1720394980297,0.35467223,2951.0,2950.7,0.55]
[1720394981766,0.35467223,2951.0,2950.7,0.61777288]
[1720394981966,0.35467223,2951.0,2950.7,0.91085017]
[1720394982172,0.35467223,2951.0,2950.8,0.06777183]
[1720394982479,0.35467223,2951.0,2950.9,0.55]
[1720394982874,0.35467223,2951.0,2950.7,0.55]
[1720394984229,1.31632658,2951.6,2950.7,0.89]
[1720394984367,1.31632658,2951.8,2951.1,2.313]